[Event "GER-chT Youth Countries 2020"]
[Site "Berlin"]
[Date "2020.10.04"]
[Round "7"]
[White "Kadach, Maria"]
[Black "Moenster, Madita"]
[Result "0-1"]
[ECO "A45"]
[WhiteElo "1539"]
[BlackElo "1918"]
[Annotator "ChessBase"]
[PlyCount "124"]
[EventDate "2020.09.30"]
[EventType "team-tourn"]
[EventRounds "7"]
[EventCountry "GER"]
[SourceTitle "playchess.com"]
[Source "ChessBase"]
[SourceQuality "1"]
[TimeControl "30/5400+30:0"]

1. d4 {[%emt 0:00:00]} Nf6 {[%emt 0:00:00]} 2. Bf4 d5 {[%emt 0:00:00]} 3. e3 {[%emt 0:00:00]} c5 {[%emt 0:00:00]} 4. c3 {[%emt 0:00:00]} Nc6 {[%emt 0:00:00]} 5. Nd2 {[%emt 0:00:13]} Bf5 {[%emt 0:00:35]} 6. Ngf3 {[%emt 0:00:27]} e6 {[%emt 0:00:50]} 7. Be2 {[%emt 0:01:20]} Be7 {[%emt 0:01:08]} 8. h3 {[%emt 0:01:46]} h6 {[%emt 0:01:30]} 9. Ne5 {[%emt 0:08:54]} O-O {[%emt 0:01:00]} 10. Ndf3 {[%emt 0:04:40]} Nxe5 {[%emt 0:04:49]} 11. Nxe5 {[%emt 0:10:14]} c4 {[%emt 0:08:02]} 12. g4 {[%emt 0:06:41]} Bh7 13. g5 {[%emt 0:00:01]} hxg5 {[%emt 0:05:22]} 14. Bxg5 Ne4 {[%emt 0:01:01]} 15. Bxe7 {[%emt 0:01:56]} Qxe7 {[%emt 0:09:03]} 16. h4 {[%emt 0:11:42]} b5 {[%emt 0:05:46]} 17. f3 {[%emt 0:02:12]} Ng3 {[%emt 0:04:53]} 18. Rh2 {[%emt 0:01:32]} Nxe2 {[%emt 0:01:53]} 19. Kxe2 {[%emt 0:00:51]} f6 {[%emt 0:03:47]} 20. Ng4 {[%emt 0:01:54]} Bd3+ {[%emt 0:03:15]} 21. Kd2 {[%emt 0:10:31]} b4 {[%emt 0:05:52]} 22. Nf2 {[%emt 0:01:52]} bxc3+ {[%emt 0:08:17]} 23. bxc3 {[%emt 0:03:20]} Bf5 {[%emt 0:07:33]} 24. e4 {[%emt 0:06:47]} Bh7 {[%emt 0:04:04]} 25. h5 {[%emt 0:06:36]} Qd6 26. Rg2 Qf4+ {[%emt 0:02:43]} 27. Ke2 {[%emt 0:07:29]} dxe4 {[%emt 0:02:54]} 28. fxe4 {[%emt 0:00:30]} Bxe4 {[%emt 0:01:22]} 29. Nxe4 {[%emt 0:04:54]} Qxe4+ {[%emt 0:01:20]} 30. Kf1 {[%emt 0:03:48]} Rab8 31. Qg4 {[%emt 1:30:02]} Qxg4 {[%emt 1:32:13]} 32. Rxg4 {[%emt 0:00:53]} Kf7 {[%emt 0:01:06]} 33. Rg2 Rb5 {[%emt 0:00:17]} 34. h6 {[%emt 0:03:16]} gxh6 {[%emt 0:02:19]} 35. Rh2 {[%emt 0:01:08]} h5 {[%emt 0:02:01]} 36. Re1 {[%emt 0:01:21]} Rfb8 37. Ree2 {[%emt 0:00:01]} Rb1+ {[%emt 0:02:48]} 38. Kg2 {[%emt 0:01:22]} R8b2 39. Kf3 {[%emt 0:00:05]} Rxe2 {[%emt 0:03:11]} 40. Rxe2 {[%emt 0:00:26]} Rc1 {[%emt 0:01:17]} 41. Re3 {[%emt 0:00:37]} Rc2 42. Re2 {[%emt 0:00:01]} Rxe2 {[%emt 0:01:38]} 43. Kxe2 {[%emt 0:00:00]} Kg6 {[%emt 0:00:00]} 44. Kf2 {[%emt 0:00:00]} Kg5 {[%emt 0:00:00]} 45. Kg3 {[%emt 0:00:00]} h4+ {[%emt 0:00:00]} 46. Kf3 {[%emt 0:00:00]} f5 {[%emt 0:00:00]} 47. a3 {[%emt 0:00:00]} f4 {[%emt 0:00:00]} 48. Kg2 {[%emt 0:00:00]} Kg4 {[%emt 0:00:00]} 49. Kf2 {[%emt 0:00:00]} h3 {[%emt 0:00:00]} 50. a4 a5 51. Kf1 {[%emt 0:00:00]} Kf3 {[%emt 0:00:00]} 52. Kg1 {[%emt 0:00:00]} Ke2 {[%emt 0:00:00]} 53. d5 {[%emt 0:00:00]} exd5 54. Kh2 f3 {[%emt 0:00:00]} 55. Kxh3 {[%emt 0:00:00]} f2 {[%emt 0:00:00]} 56. Kg4 {[%emt 0:00:00]} f1=Q 57. Kg5 {[%emt 0:00:00]} Qf7 {[%emt 0:00:00]} 58. Kg4 {[%emt 0:00:00]} Qf6 {[%emt 0:00:00]} 59. Kg3 Qf5 {[%emt 0:00:00]} 60. Kg2 {[%emt 0:00:00]} Qg4+ 61. Kh1 {[%emt 1:16:27]} Kf2 {[%emt 1:11:15]} 62. Kh2 {[%emt 0:00:09]} Qg2# 0-1

[Event "GER-chT Youth Countries 2020"]
[Site "Berlin"]
[Date "2020.10.04"]
[Round "7"]
[White "Eichhorn, Mathilda"]
[Black "Heuberger, Sandra"]
[Result "1-0"]
[ECO "C55"]
[WhiteElo "1532"]
[BlackElo "1004"]
[Annotator "NA"]
[PlyCount "119"]
[EventDate "2020.09.30"]
[EventType "team-tourn"]
[EventRounds "7"]
[EventCountry "GER"]
[SourceTitle "playchess.com"]
[Source "ChessBase"]
[SourceQuality "1"]
[TimeControl "30/5400+30:0"]

1. e4 {[%emt 0:00:00]} e5 {[%emt 0:00:00]} 2. Nf3 {[%emt 0:00:00]} Nc6 {[%emt 0:00:00]} 3. Bc4 {[%emt 0:00:00]} Nf6 {[%emt 0:00:07]} 4. d3 {[%emt 0:00:00]} Be7 {[%emt 0:00:32]} 5. O-O {[%emt 0:00:09]} O-O {[%emt 0:01:27]} 6. c3 {[%emt 0:00:12]} d5 {[%emt 0:03:39]} 7. exd5 {[%emt 0:01:39]} Nxd5 {[%emt 0:00:32]} 8. Re1 {[%emt 0:10:59]} Bg4 {[%emt 0:05:50]} 9. h3 {[%emt 0:15:25]} Bh5 {[%emt 0:07:18]} 10. Nbd2 {[%emt 0:08:58]} Re8 {[%emt 0:11:23]} 11. Nf1 {[%emt 0:00:33]} Bf6 {[%emt 0:07:39]} 12. Ng3 {[%emt 0:00:42]} Bg6 {[%emt 0:00:54]} 13. d4 {[%emt 0:07:36]} e4 {[%emt 0:03:36]} 14. Bxd5 {[%emt 0:03:13]} Qxd5 {[%emt 0:03:10]} 15. Nd2 {[%emt 0:00:26]} Re7 {[%emt 0:03:47]} 16. Qb3 {[%emt 0:01:07]} Qxb3 {[%emt 0:02:04]} 17. Nxb3 {[%emt 0:00:07]} Rae8 {[%emt 0:01:00]} 18. Be3 {[%emt 0:01:00]} b6 {[%emt 0:01:15]} 19. Re2 {[%emt 0:00:21]} Nd8 {[%emt 0:05:08]} 20. Rae1 {[%emt 0:01:22]} Nb7 {[%emt 0:02:07]} 21. Bf4 {[%emt 0:01:26]} Nd6 {[%emt 0:00:37]} 22. Nd2 {[%emt 0:00:33]} h6 {[%emt 0:03:13]} 23. Bxd6 {[%emt 0:01:32]} cxd6 {[%emt 0:00:40]} 24. Ndxe4 {[%emt 0:02:08]} Bxe4 {[%emt 0:00:43]} 25. Rxe4 {[%emt 0:00:55]} d5 {[%emt 0:01:18]} 26. Rxe7 {[%emt 0:00:16]} Rxe7 {[%emt 0:00:37]} 27. Rxe7 {[%emt 0:00:16]} Bxe7 {[%emt 0:00:05]} 28. Nf5 {[%emt 0:00:27]} Bg5 {[%emt 0:00:57]} 29. b3 {[%emt 0:00:58]} g6 {[%emt 0:00:37]} 30. Ne3 {[%emt 0:02:38]} Bxe3 {[%emt 0:00:26]} 31. fxe3 {[%emt 1:30:04]} f5 {[%emt 1:30:11]} 32. Kf2 {[%emt 0:00:12]} Kf7 {[%emt 0:00:25]} 33. Kf3 {[%emt 0:00:09]} g5 {[%emt 0:00:21]} 34. g4 {[%emt 0:00:42]} Kf6 {[%emt 0:00:33]} 35. gxf5 {[%emt 0:01:23]} Kxf5 {[%emt 0:00:11]} 36. c4 {[%emt 0:00:05]} Ke6 {[%emt 0:00:56]} 37. e4 {[%emt 0:00:25]} dxe4+ {[%emt 0:00:20]} 38. Kxe4 {[%emt 0:00:07]} Ke7 {[%emt 0:00:43]} 39. b4 {[%emt 0:00:29]} a6 {[%emt 0:00:41]} 40. a4 {[%emt 0:00:16]} Ke6 {[%emt 0:00:33]} 41. a5 {[%emt 0:00:32]} bxa5 {[%emt 0:00:14]} 42. bxa5 {[%emt 0:00:05]} Ke7 {[%emt 0:00:08]} 43. Ke5 {[%emt 0:00:14]} Kd7 {[%emt 0:00:04]} 44. d5 {[%emt 0:00:18]} h5 {[%emt 0:00:20]} 45. Kf5 {[%emt 0:00:08]} Kd6 {[%emt 0:00:19]} 46. Kxg5 {[%emt 0:00:11]} Kc5 {[%emt 0:00:16]} 47. Kxh5 {[%emt 0:00:12]} Kd6 {[%emt 0:00:12]} 48. Kg6 {[%emt 0:00:10]} Ke7 {[%emt 0:00:08]} 49. h4 {[%emt 0:00:08]} Kf8 {[%emt 0:00:11]} 50. h5 {[%emt 0:00:09]} Ke7 {[%emt 0:00:18]} 51. Kg7 {[%emt 0:00:11]} Kd6 {[%emt 0:00:08]} 52. h6 {[%emt 0:00:08]} Kc5 {[%emt 0:00:05]} 53. h7 {[%emt 0:00:10]} Kxc4 {[%emt 0:00:05]} 54. d6 {[%emt 0:00:14]} Kb4 {[%emt 0:00:09]} 55. h8=Q Ka4 56. Qb8 {[%emt 0:01:37]} Ka3 {[%emt 0:00:52]} 57. d7 {[%emt 0:00:26]} Ka4 {[%emt 0:00:07]} 58. d8=Q Ka3 59. Qdb6 {[%emt 0:01:13]} Ka4 {[%emt 0:00:50]} 60. Qb4# 1-0

[Event "GER-chT Youth Countries 2020"]
[Site "Berlin"]
[Date "2020.10.04"]
[Round "7"]
[White "Uhlmann, Tim"]
[Black "Schreidl, Michael"]
[Result "1-0"]
[ECO "C55"]
[WhiteElo "1523"]
[BlackElo "1640"]
[Annotator "NA"]
[PlyCount "53"]
[EventDate "2020.09.30"]
[EventType "team-tourn"]
[EventRounds "7"]
[EventCountry "GER"]
[SourceTitle "playchess.com"]
[Source "ChessBase"]
[SourceQuality "1"]
[TimeControl "30/5400+30:0"]

1. e4 {[%emt 0:00:00]} e5 {[%emt 0:00:00]} 2. Nf3 {[%emt 0:00:00]} Nc6 {[%emt 0:00:00]} 3. d4 {[%emt 0:00:00]} exd4 {[%emt 0:00:00]} 4. Bc4 {[%emt 0:00:00]} Nf6 {[%emt 0:00:00]} 5. e5 {[%emt 0:00:07]} d5 {[%emt 0:00:00]} 6. Bb5 {[%emt 0:00:05]} Ne4 {[%emt 0:00:00]} 7. Nxd4 {[%emt 0:00:32]} Bd7 {[%emt 0:00:06]} 8. Bxc6 {[%emt 0:00:07]} bxc6 {[%emt 0:00:03]} 9. O-O {[%emt 0:00:15]} Bc5 {[%emt 0:00:24]} 10. f3 {[%emt 0:00:09]} Ng5 {[%emt 0:00:05]} 11. f4 {[%emt 0:00:16]} Ne4 {[%emt 0:00:03]} 12. Be3 {[%emt 0:00:12]} Bb6 {[%emt 0:00:21]} 13. Nd2 {[%emt 0:00:20]} Nxd2 {[%emt 0:00:09]} 14. Qxd2 {[%emt 0:00:05]} c5 {[%emt 0:00:36]} 15. Nf3 {[%emt 0:00:05]} d4 {[%emt 0:00:03]} 16. Bf2 {[%emt 0:00:13]} Bc6 {[%emt 0:00:11]} 17. Rae1 {[%emt 0:00:10]} Qd5 {[%emt 0:14:32]} 18. Bh4 {[%emt 0:00:26]} O-O {[%emt 0:11:26]} 19. f5 {[%emt 0:06:14]} Bb5 {[%emt 0:10:50]} 20. f6 {[%emt 0:01:13]} h6 {[%emt 0:06:44]} 21. fxg7 {[%emt 0:00:07]} Kxg7 {[%emt 0:00:47]} 22. Bf6+ {[%emt 0:00:05]} Kh7 {[%emt 0:01:59]} 23. Ng5+ {[%emt 0:00:07]} Kg8 {[%emt 0:04:56]} 24. Rf3 {[%emt 0:00:37]} Rfc8 {[%emt 0:11:52]} 25. Nh7 {[%emt 0:01:29]} Kxh7 {[%emt 0:05:47]} 26. Rh3 {[%emt 0:00:10]} Kg6 {[%emt 0:03:54]} 27. Qf4 {[%emt 0:01:11]} 1-0

[Event "GER-chT Youth Countries 2020"]
[Site "Berlin"]
[Date "2020.10.04"]
[Round "7"]
[White "Fischer, Juliane"]
[Black "Margaryan, Susanna"]
[Result "0-1"]
[ECO "B40"]
[WhiteElo "1509"]
[BlackElo "1450"]
[Annotator "NA"]
[PlyCount "66"]
[EventDate "2020.09.30"]
[EventType "team-tourn"]
[EventRounds "7"]
[EventCountry "GER"]
[SourceTitle "playchess.com"]
[Source "ChessBase"]
[SourceQuality "1"]
[TimeControl "30/5400+30:0"]

1. e4 c5 2. Nf3 {[%emt 0:00:39]} e6 {[%emt 0:00:16]} 3. c3 {[%emt 0:00:13]} d5 {[%emt 0:01:12]} 4. e5 {[%emt 0:10:02]} Nc6 {[%emt 0:00:24]} 5. d4 {[%emt 0:00:22]} c4 {[%emt 0:01:44]} 6. Be2 {[%emt 0:01:38]} Nge7 {[%emt 0:00:28]} 7. Bg5 {[%emt 0:03:04]} h6 {[%emt 0:00:39]} 8. Bd2 {[%emt 0:01:41]} Ng6 {[%emt 0:02:54]} 9. O-O {[%emt 0:00:47]} Be7 {[%emt 0:00:14]} 10. Qc2 {[%emt 0:01:13]} O-O {[%emt 0:01:17]} 11. Re1 {[%emt 0:01:08]} b5 {[%emt 0:03:18]} 12. h3 {[%emt 0:05:16]} a5 {[%emt 0:02:18]} 13. Nh2 {[%emt 0:00:53]} Re8 {[%emt 0:07:29]} 14. Bh5 {[%emt 0:04:11]} Nf8 {[%emt 0:01:57]} 15. Ng4 {[%emt 0:02:14]} g6 {[%emt 0:03:47]} 16. Nxh6+ {[%emt 0:00:31]} Kg7 {[%emt 0:00:50]} 17. Qd1 {[%emt 0:18:59]} Bg5 {[%emt 0:02:02]} 18. Nxf7 {[%emt 0:20:12]} Kxf7 {[%emt 0:00:32]} 19. Bg4 {[%emt 0:03:12]} b4 {[%emt 0:03:56]} 20. Bxg5 {[%emt 0:02:28]} Qxg5 {[%emt 0:00:18]} 21. Re3 {[%emt 0:00:25]} Kg7 {[%emt 0:04:56]} 22. Rg3 {[%emt 0:00:36]} Qh6 {[%emt 0:04:25]} 23. Bh5 {[%emt 0:03:23]} Kh8 {[%emt 0:02:47]} 24. Qg4 {[%emt 0:02:41]} Qxh5 {[%emt 0:01:08]} 25. Qxh5+ {[%emt 0:00:30]} gxh5 {[%emt 0:00:05]} 26. Rg5 {[%emt 0:00:11]} Nh7 {[%emt 0:00:46]} 27. Rxh5 {[%emt 0:00:08]} Rg8 {[%emt 0:00:14]} 28. Nd2 {[%emt 0:00:16]} Rg5 {[%emt 0:00:57]} 29. Rh4 {[%emt 0:00:12]} Bd7 {[%emt 0:00:46]} 30. Re1 {[%emt 0:00:32]} a4 {[%emt 0:00:36]} 31. Re3 {[%emt 1:29:49]} a3 {[%emt 1:30:54]} 32. bxa3 {[%emt 0:00:24]} Rxa3 {[%emt 0:00:38]} 33. Nf3 {[%emt 0:00:44]} Rg7 {[%emt 0:01:19]} 0-1

[Event "GER-chT Youth Countries 2020"]
[Site "Berlin"]
[Date "2020.10.04"]
[Round "7"]
[White "Herrmann, Jakob"]
[Black "Mueller, Maximilian"]
[Result "1/2-1/2"]
[ECO "C02"]
[WhiteElo "1504"]
[BlackElo "2303"]
[Annotator "ChessBase"]
[PlyCount "58"]
[EventDate "2020.09.30"]
[EventType "team-tourn"]
[EventRounds "7"]
[EventCountry "GER"]
[SourceTitle "playchess.com"]
[Source "ChessBase"]
[SourceQuality "1"]
[TimeControl "30/5400+30:0"]

1. e4 {[%emt 0:00:00]} e6 {[%emt 0:00:00]} 2. d4 {[%emt 0:00:00]} d5 {[%emt 0:00:00]} 3. e5 {[%emt 0:00:00]} c5 {[%emt 0:00:00]} 4. c3 {[%emt 0:00:00]} Nc6 {[%emt 0:00:00]} 5. Nf3 {[%emt 0:00:11]} Qb6 {[%emt 0:00:04]} 6. Be2 {[%emt 0:00:07]} Nh6 {[%emt 0:01:20]} 7. Bxh6 {[%emt 0:00:18]} gxh6 {[%emt 0:00:47]} 8. Qd2 {[%emt 0:00:15]} Bd7 {[%emt 0:07:31]} 9. O-O {[%emt 0:12:44]} Rc8 {[%emt 0:11:25]} 10. Rd1 {[%emt 0:07:18]} cxd4 {[%emt 0:13:20]} 11. cxd4 {[%emt 0:00:52]} Ne7 {[%emt 0:06:16]} 12. Bd3 {[%emt 0:13:37]} Bb5 {[%emt 0:09:46]} 13. Bxb5+ {[%emt 0:02:25]} Qxb5 {[%emt 0:00:01]} 14. Nc3 {[%emt 0:02:18]} Qd7 {[%emt 0:00:23]} 15. Ne2 {[%emt 0:03:51]} Nf5 {[%emt 0:17:24]} 16. Nf4 {[%emt 0:06:21]} Ng7 {[%emt 0:06:35]} 17. Rac1 {[%emt 0:02:59]} Rxc1 {[%emt 0:02:05]} 18. Rxc1 {[%emt 0:00:57]} Be7 {[%emt 0:01:30]} 19. Nd3 {[%emt 0:09:42]} Nf5 {[%emt 0:02:22]} 20. Nc5 {[%emt 0:02:37]} Bxc5 {[%emt 0:00:11]} 21. Rxc5 {[%emt 0:00:15]} b6 {[%emt 0:00:24]} 22. Rc3 {[%emt 0:01:05]} Rg8 {[%emt 0:07:06]} 23. Qc2 {[%emt 0:06:47]} Kd8 {[%emt 0:00:08]} 24. h3 h5 {[%emt 0:00:54]} 25. Qd2 {[%emt 0:13:42]} h6 {[%emt 0:00:26]} 26. Ne1 {[%emt 0:00:38]} Qa4 {[%emt 0:02:31]} 27. b4 {[%emt 0:03:48]} Qd7 {[%emt 0:00:48]} 28. Nc2 {[%emt 0:00:55]} Rg6 {[%emt 0:05:29]} 29. Ne3 {[%emt 0:00:48]} Ne7 {[%emt 0:00:29]} 1/2-1/2

[Event "GER-chT Youth Countries 2020"]
[Site "Berlin"]
[Date "2020.10.04"]
[Round "7"]
[White "Ottlik, Marie"]
[Black "Marrufo, Emilia"]
[Result "1-0"]
[ECO "B01"]
[WhiteElo "1454"]
[BlackElo "796"]
[Annotator "NA"]
[PlyCount "81"]
[EventDate "2020.09.30"]
[EventType "team-tourn"]
[EventRounds "7"]
[EventCountry "GER"]
[SourceTitle "playchess.com"]
[Source "ChessBase"]
[SourceQuality "1"]
[TimeControl "30/5400+30:0"]

1. e4 {[%emt 0:00:00]} d5 {[%emt 0:00:00]} 2. exd5 {[%emt 0:00:00]} Qxd5 {[%emt 0:00:00]} 3. Nc3 {[%emt 0:00:00]} Qd8 {[%emt 0:00:00]} 4. d4 {[%emt 0:00:22]} Nf6 {[%emt 0:00:48]} 5. Bc4 {[%emt 0:00:42]} Bg4 {[%emt 0:00:20]} 6. f3 {[%emt 0:00:40]} Bf5 {[%emt 0:00:22]} 7. Nge2 {[%emt 0:08:50]} e6 {[%emt 0:02:03]} 8. O-O {[%emt 0:02:32]} Bd6 {[%emt 0:00:09]} 9. Bf4 {[%emt 0:06:57]} O-O {[%emt 0:01:02]} 10. Qd2 {[%emt 0:05:50]} Nbd7 {[%emt 0:01:48]} 11. Bg5 {[%emt 0:10:30]} Be7 {[%emt 0:02:43]} 12. Ng3 {[%emt 0:05:49]} Nb6 {[%emt 0:03:08]} 13. Bb3 {[%emt 0:02:09]} Nfd5 {[%emt 0:02:28]} 14. Bxe7 {[%emt 0:01:27]} Qxe7 {[%emt 0:00:44]} 15. Nxf5 {[%emt 0:00:26]} exf5 {[%emt 0:06:16]} 16. Nxd5 {[%emt 0:00:29]} Nxd5 {[%emt 0:00:54]} 17. Bxd5 {[%emt 0:00:19]} c6 {[%emt 0:01:51]} 18. Bb3 {[%emt 0:00:37]} Rad8 {[%emt 0:04:26]} 19. c3 {[%emt 0:00:19]} Rd6 {[%emt 0:02:25]} 20. Bc2 {[%emt 0:07:00]} g6 {[%emt 0:01:08]} 21. Rfe1 {[%emt 0:02:49]} Qh4 {[%emt 0:00:41]} 22. Qf2 {[%emt 0:01:11]} Qf4 {[%emt 0:01:04]} 23. Rad1 {[%emt 0:03:03]} g5 {[%emt 0:03:05]} 24. Qg3 {[%emt 0:01:00]} Rd5 {[%emt 0:01:24]} 25. Qxf4 {[%emt 0:00:46]} gxf4 {[%emt 0:00:24]} 26. Re7 {[%emt 0:01:11]} Ra5 {[%emt 0:01:13]} 27. Bb3 {[%emt 0:00:47]} Rb5 {[%emt 0:02:00]} 28. Rde1 {[%emt 0:01:21]} a5 {[%emt 0:01:13]} 29. R1e5 {[%emt 0:03:35]} Rb6 {[%emt 0:00:39]} 30. Rxa5 {[%emt 0:00:17]} h5 {[%emt 0:00:24]} 31. Rxf5 {[%emt 1:30:15]} Ra6 {[%emt 1:30:23]} 32. Rexf7 {[%emt 0:00:58]} Raa8 {[%emt 0:00:31]} 33. Rxf8+ {[%emt 0:00:13]} Kg7 {[%emt 0:00:34]} 34. Rxa8 {[%emt 0:00:00]} b5 {[%emt 0:01:09]} 35. Rc8 {[%emt 0:00:00]} b4 {[%emt 0:00:33]} 36. Rxc6 {[%emt 0:00:00]} bxc3 37. Rb5 {[%emt 0:00:00]} Kf8 {[%emt 0:01:22]} 38. Rb8+ {[%emt 0:00:09]} Ke7 39. Rb7+ {[%emt 0:00:12]} Kd8 {[%emt 0:00:45]} 40. Rh6 {[%emt 0:00:06]} cxb2 {[%emt 0:00:23]} 41. Rh8# 1-0

[Event "GER-chT Youth Countries 2020"]
[Site "Berlin"]
[Date "2020.10.04"]
[Round "7"]
[White "Huppert, Anna"]
[Black "Mueller, Sophie Charlotte"]
[Result "1/2-1/2"]
[ECO "B06"]
[WhiteElo "1440"]
[BlackElo "1459"]
[Annotator "NA"]
[PlyCount "113"]
[EventDate "2020.09.30"]
[EventType "team-tourn"]
[EventRounds "7"]
[EventCountry "GER"]
[SourceTitle "playchess.com"]
[Source "ChessBase"]
[SourceQuality "1"]
[TimeControl "30/5400+30:0"]

1. e4 {[%emt 0:00:00]} g6 {[%emt 0:00:00]} 2. d4 {[%emt 0:00:00]} Bg7 {[%emt 0:00:00]} 3. Nc3 {[%emt 0:02:10]} d6 {[%emt 0:00:23]} 4. f4 {[%emt 0:01:43]} a6 {[%emt 0:00:47]} 5. Bc4 {[%emt 0:05:02]} b5 {[%emt 0:00:44]} 6. Bb3 {[%emt 0:01:48]} e6 {[%emt 0:06:22]} 7. Nf3 {[%emt 0:03:50]} Nd7 {[%emt 0:01:54]} 8. d5 {[%emt 0:18:02]} Nc5 {[%emt 0:24:55]} 9. dxe6 {[%emt 0:04:05]} Bxe6 {[%emt 0:03:54]} 10. Bxe6 {[%emt 0:03:01]} fxe6 {[%emt 0:02:11]} 11. e5 {[%emt 0:07:48]} Nh6 {[%emt 0:12:09]} 12. O-O {[%emt 0:04:34]} d5 {[%emt 0:06:51]} 13. Be3 {[%emt 0:05:07]} Nb7 {[%emt 0:01:50]} 14. Ne2 {[%emt 0:07:18]} c5 {[%emt 0:03:06]} 15. c3 {[%emt 0:09:43]} Rc8 {[%emt 0:04:12]} 16. b4 {[%emt 0:07:07]} Ng4 {[%emt 0:00:50]} 17. Bd2 {[%emt 0:02:46]} Qb6 {[%emt 0:01:17]} 18. Kh1 {[%emt 0:06:49]} cxb4 {[%emt 0:00:33]} 19. cxb4 {[%emt 0:03:35]} Nf2+ {[%emt 0:08:15]} 20. Rxf2 {[%emt 0:00:09]} Qxf2 {[%emt 0:00:09]} 21. Ned4 {[%emt 0:01:11]} Rc4 {[%emt 0:02:02]} 22. Bc1 {[%emt 0:00:58]} Rxb4 {[%emt 0:06:39]} 23. a3 {[%emt 0:00:52]} Rc4 {[%emt 0:01:16]} 24. Rb1 {[%emt 0:03:08]} Qa2 {[%emt 0:04:00]} 25. Nxe6 {[%emt 0:01:01]} Kf7 {[%emt 0:00:53]} 26. Neg5+ {[%emt 0:00:22]} Ke8 {[%emt 0:01:18]} 27. Be3 {[%emt 0:00:41]} Rc3 {[%emt 0:02:18]} 28. Ra1 {[%emt 0:00:24]} Qc4 {[%emt 0:01:47]} 29. Bd2 {[%emt 0:00:39]} Rd3 {[%emt 0:01:40]} 30. Rc1 {[%emt 0:00:27]} Qa2 {[%emt 0:00:43]} 31. e6 {[%emt 1:30:36]} Nd6 {[%emt 1:31:42]} 32. Rc6 {[%emt 0:00:30]} Ne4 {[%emt 0:00:42]} 33. Rc8+ {[%emt 0:00:30]} Ke7 {[%emt 0:00:04]} 34. Bb4+ {[%emt 0:00:31]} Kf6 {[%emt 0:00:53]} 35. Nxe4+ {[%emt 0:00:23]} dxe4 {[%emt 0:00:21]} 36. Bc3+ Rxc3 {[%emt 0:00:45]} 37. Rxc3 {[%emt 0:00:41]} Qxe6 {[%emt 0:00:30]} 38. Qd4+ {[%emt 0:00:39]} Ke7 {[%emt 0:00:25]} 39. Rc7+ {[%emt 0:00:13]} Ke8 {[%emt 0:00:32]} 40. Qxg7 {[%emt 0:00:51]} Rg8 {[%emt 0:00:37]} 41. Rc8+ {[%emt 0:00:00]} Qxc8 {[%emt 0:00:00]} 42. Qxg8+ {[%emt 0:00:00]} Kd7 {[%emt 0:00:00]} 43. Ne5+ {[%emt 0:00:00]} Kc7 {[%emt 0:00:00]} 44. Qxc8+ {[%emt 0:00:00]} Kxc8 {[%emt 0:00:00]} 45. Kg1 {[%emt 0:00:00]} Kc7 {[%emt 0:00:00]} 46. Kf2 {[%emt 0:00:00]} Kd6 {[%emt 0:00:00]} 47. Ke3 {[%emt 0:00:00]} Kd5 {[%emt 0:00:00]} 48. h4 {[%emt 0:00:00]} a5 {[%emt 0:00:00]} 49. g3 {[%emt 0:00:00]} a4 {[%emt 0:00:00]} 50. Nf7 {[%emt 0:00:00]} b4 {[%emt 0:00:00]} 51. Ng5 {[%emt 0:00:00]} bxa3 {[%emt 0:00:00]} 52. Nxe4 {[%emt 0:00:38]} Kc4 {[%emt 0:00:00]} 53. Nd2+ {[%emt 0:01:31]} Kc3 {[%emt 0:00:00]} 54. Nb1+ {[%emt 0:00:20]} Kb2 {[%emt 0:00:00]} 55. Nxa3 {[%emt 0:00:08]} Kxa3 {[%emt 0:00:00]} 56. g4 {[%emt 0:00:14]} Kb3 {[%emt 0:00:00]} 57. f5 {[%emt 0:00:11]} 1/2-1/2

[Event "GER-chT Youth Countries 2020"]
[Site "Berlin"]
[Date "2020.10.04"]
[Round "7"]
[White "Avetyan, Manan"]
[Black "Alhassan, Jodi"]
[Result "1-0"]
[ECO "B91"]
[WhiteElo "1356"]
[BlackElo "1275"]
[Annotator "NA"]
[PlyCount "67"]
[EventDate "2020.09.30"]
[EventType "team-tourn"]
[EventRounds "7"]
[EventCountry "GER"]
[SourceTitle "playchess.com"]
[Source "ChessBase"]
[SourceQuality "1"]
[TimeControl "30/5400+30:0"]

1. e4 {[%emt 0:00:00]} c5 {[%emt 0:00:00]} 2. Nf3 {[%emt 0:00:00]} d6 {[%emt 0:00:00]} 3. d4 {[%emt 0:00:00]} cxd4 {[%emt 0:00:00]} 4. Nxd4 {[%emt 0:00:01]} Nf6 {[%emt 0:00:08]} 5. Nc3 {[%emt 0:00:06]} a6 {[%emt 0:00:14]} 6. g3 {[%emt 0:00:15]} Nc6 {[%emt 0:02:27]} 7. Nb3 e6 {[%emt 0:04:45]} 8. Bg2 {[%emt 0:08:38]} Be7 {[%emt 0:04:45]} 9. O-O {[%emt 0:01:20]} O-O {[%emt 0:04:05]} 10. Be3 {[%emt 0:19:19]} Qc7 {[%emt 0:11:45]} 11. f4 {[%emt 0:17:39]} Re8 {[%emt 0:41:40]} 12. Qe2 {[%emt 0:08:59]} h6 {[%emt 0:06:06]} 13. Rad1 {[%emt 0:05:17]} e5 {[%emt 0:06:37]} 14. h3 {[%emt 0:21:56]} b5 {[%emt 0:03:18]} 15. a3 {[%emt 0:02:31]} Bb7 {[%emt 0:02:20]} 16. Nd5 {[%emt 0:05:00]} Nxd5 17. exd5 {[%emt 0:00:03]} Na5 {[%emt 0:07:40]} 18. Nxa5 {[%emt 0:02:45]} exf4 {[%emt 0:01:33]} 19. Bd2 {[%emt 0:01:03]} Bh4 {[%emt 0:01:12]} 20. Qf3 Bxg3 {[%emt 0:00:35]} 21. Nxb7 {[%emt 0:01:40]} Qb6+ {[%emt 0:00:22]} 22. Kh1 {[%emt 0:00:16]} Qxb7 {[%emt 0:00:48]} 23. Bxf4 {[%emt 0:00:12]} Bxf4 {[%emt 0:00:25]} 24. Qxf4 {[%emt 0:00:02]} Ra7 {[%emt 0:00:30]} 25. Qxd6 {[%emt 0:01:01]} Re2 {[%emt 0:00:39]} 26. Rde1 {[%emt 0:00:45]} Rxe1 {[%emt 0:00:11]} 27. Rxe1 {[%emt 0:00:06]} Qc8 {[%emt 0:00:22]} 28. Re7 {[%emt 0:01:17]} Rxe7 {[%emt 0:00:14]} 29. Qxe7 {[%emt 0:00:06]} g6 {[%emt 0:00:45]} 30. c3 {[%emt 0:00:48]} Kg7 {[%emt 0:00:51]} 31. Qe5+ {[%emt 1:31:39]} Kg8 {[%emt 1:30:09]} 32. d6 {[%emt 0:00:42]} Qb8 33. Qe7 Qc8 {[%emt 0:01:32]} 34. d7 {[%emt 0:01:00]} 1-0